Cogmind - Beta 16.1 @@@ ROGUE MODE // 2026.02.17 @ 18:28:52 Player: Kaisercar Result: Destroyed by P-80 Master with Gamma Rifle Performance ------------- Evolutions (7) 3500 Regions Visited (20) 4000 Robots Destroyed (158) 790 Value Destroyed (6364) 6364 Prototype IDs (51) 1020 Alien Tech Used (1) 200 Bonus (1768) 1768 TOTAL SCORE: 17642 Bonus ------- Follower Combat Kills 379 Entered DSFs 500 Met Data Miner 300 Acquired ECA 300 Met Zhirov 300 Friendly Fire -11 Cogmind --------- Core Integrity 0/1300 Matter 109/300 Energy 303/340 System Corruption 30% Temperature Cool (-150) Movement Walking (180) Ox1 Location -3/Testing Parts ------- > --- POWER (1) -------- Particle Reactor > --- PROPULSION (5) --- Biometal Leg > --- UTILITY (12) ----- Improved Cryofiber Web Advanced Cooling System Advanced Signal Interpreter Improved Thermal Defense Suite Hacking Suite Advanced Hacking Suite > --- WEAPON (3) ------- Compact HERF Cannon Centrium Greatsword > --- INVENTORY (5) ---- Light Antimatter Reactor Advanced Sensor Array Long-range Tractor Beam Improved Plasma Cutter Peak State ------------ > --- POWER ------------ Particle Reactor > --- PROPULSION ------- Flexi-carbon Leg Flexi-carbon Leg Armored Leg Wheel Compact Wheel > --- UTILITY ---------- Experimental Thermal Generator Improved Cryofiber Web Advanced Heat Sink High-capacity Storage Unit Advanced Terrain Scanner Advanced Terrain Scanner Improved Terrain Scan Processor Layered Heavy Armor Plating Hacking Suite Advanced Hacking Suite System Mapper > --- WEAPON ----------- Matter Neutralizer Improved Matter Neutralizer Magnetic Acceleration Cannon > --- INVENTORY -------- Light Antimatter Reactor Light Antimatter Reactor Particle Reactor Experimental Cooling System High-capacity Matter Pod Advanced Sensor Array Advanced Signal Interpreter Matter Filter Heavy Armor Plating Reflective Plating Improved Thermal Defense Suite Improved Hacking Suite Long-range Tractor Beam Variable Charge Gun Heavy Shock Bomb Launcher Heavy Rocket Launcher Improved Remote Datajack Improved Plasma Cutter Shock Maul [Rating: 119] Favorites ----------- Power Heavy Ion Engine Engine Heavy Ion Engine Power Core Neutrino Core Reactor Particle Reactor Propulsion Armored Leg Treads Light Treads Leg Armored Leg Wheel Compact Wheel Utility Core Analyzer Device Advanced Sensor Array Storage Huge Storage Unit Processor Core Analyzer Hackware Hacking Suite Protection Layered Medium Armor Plating Weapon Magnetic Acceleration Cannon Energy Gun Thermic Laser Energy Cannon Heavy Plasma Cannon Ballistic Gun Coil Gun Ballistic Cannon Magnetic Acceleration Cannon Launcher Improved Proton Missile Launcher Impact Weapon Hammer Slashing Weapon Centrium Greatsword Build | -11 -10 -10 -10 -9 -8 -7 -7 -6 -6 -6 -6 -5 -5 -5 -5 -5 -4 -4 -3 -3 ------- Run | Yrd Mat Min Exi Min Mat Fac DSF Fac Low Low Dat Pro Fac Upp Upp Zhi Pro Fac Res Tes Slots Evolved 14 | . . . . . 4 2 . 2 . . . . 2 . . . . 2 2 . Power . | . . . . . . . . . . . . . . . . . . . . . Propulsion 3 | . . . . . 1 . . . . . . . 1 . . . . . 1 . Utility 10 | . . . . . 2 2 . 2 . . . . 1 . . . . 2 1 . Weapon 1 | . . . . . 1 . . . . . . . . . . . . . . . Parts Attached 158 | 7 8 . . 8 12 2 8 25 7 7 . 4 12 15 4 . 1 1 16 21 Power 16 | 1 1 . . 2 1 . . 1 . . . . 3 1 1 . . . 2 3 Engine 7 | 1 1 . . 2 1 . . 1 . . . . . . 1 . . . . . Core 3 | . . . . . . . . . . . . . 2 1 . . . . . . Reactor 6 | . . . . . . . . . . . . . 1 . . . . . 2 3 Propulsion 28 | 2 1 . . 1 5 . 1 4 . 1 . . 2 2 . . 1 . 3 5 Treads 10 | 2 1 . . 1 4 . 1 1 . . . . . . . . . . . . Leg 15 | . . . . . 1 . . 3 . 1 . . 2 2 . . 1 . 1 4 Wheel 3 | . . . . . . . . . . . . . . . . . . . 2 1 Hover . | . . . . . . . . . . . . . . . . . . . . . Flight . | . . . . . . . . . . . . . . . . . . . . . Utility 69 | 2 3 . . 1 3 2 4 14 3 4 . 2 6 5 2 . . 1 8 9 Device 29 | 1 . . . . 1 . 1 5 1 2 . 1 3 3 . . . . 5 6 Storage 3 | 1 1 . . . . . . . . . . . 1 . . . . . . . Processor 15 | . 1 . . 1 . 1 3 3 2 . . . 2 . 1 . . . . 1 Hackware 3 | . . . . . . . . . . . . . . . . . . 1 1 1 Protection 19 | . 1 . . . 2 1 . 6 . 2 . 1 . 2 1 . . . 2 1 Artifact . | . . . . . . . . . . . . . . . . . . . . . Weapon 45 | 2 3 . . 4 3 . 3 6 4 2 . 2 1 7 1 . . . 3 4 Energy Gun 9 | 1 1 . . 1 . . . 1 1 1 . . . 2 . . . . . 1 Energy Cannon 5 | . . . . . 1 . . . . . . . . 1 . . . . 1 2 Ballistic Gun 14 | 1 1 . . 3 1 . . 1 2 . . 1 . 3 . . . . 1 . Ballistic Cannon 10 | . . . . . 1 . 3 3 . 1 . . 1 . . . . . 1 . Launcher 4 | . . . . . . . . . 1 . . 1 . 1 1 . . . . . Special Weapon . | . . . . . . . . . . . . . . . . . . . . . Impact Weapon 2 | . 1 . . . . . . 1 . . . . . . . . . . . . Slashing Weapon 1 | . . . . . . . . . . . . . . . . . . . . 1 Piercing Weapon . | . . . . . . . . . . . . . . . . . . . . . Special Melee Weapon . | . . . . . . . . . . . . . . . . . . . . . Unidentified Prototypes 10 | . . . . . 1 . . 1 . . . . . . . 1 . . . 7 Parts Lost 57 | . 2 . . 4 . . 1 3 1 . . 7 2 . 1 . . . 16 20 Power 5 | . . . . 1 . . . 1 . . . 1 . . . . . . . 2 Propulsion 11 | . 1 . . 1 . . . . . . . . . . . . . . 3 6 Utility 26 | . . . . . . . 1 2 . . . 3 1 . 1 . . . 10 8 Weapon 15 | . 1 . . 2 . . . . 1 . . 3 1 . . . . . 3 4 Highest Loss Streak 20 | . 1 . . 4 . . 1 2 1 . . 4 1 . 1 . . . 5 20 To Critical Strikes 2 | . . . . . . . . . . . . 1 . . . . . . 1 . Average Backups 21 | 2 16 24 23 20 22 21 22 22 25 25 25 24 19 19 20 20 20 18 19 16 Power . | . 1 2 2 1 1 1 1 . . . . . . 1 1 1 1 1 2 3 Propulsion 1 | 1 2 3 3 2 1 2 1 . 3 2 2 2 1 1 . . . . . . Utility 13 | . 9 14 13 14 16 13 15 15 15 15 17 15 12 11 12 12 12 10 9 8 Weapon 5 | . 2 5 5 3 3 5 5 6 6 5 5 5 3 4 6 6 6 6 6 3 Tool/Special . | . . . . . . . . . . . . . . . . . . . . . Unused Backups 46 | . 3 4 3 2 12 . 2 3 1 1 . . 3 3 . 1 . . 2 6 Power 5 | . 1 1 . 1 1 . . . . . . . . . . . . . . 1 Propulsion 2 | . 1 . . . . . . 1 . . . . . . . . . . . . Utility 27 | . . 2 3 1 8 . 2 2 1 1 . . 2 . . 1 . . 1 3 Weapon 10 | . 1 1 . . 3 . . . . . . . 1 3 . . . . 1 . Tool/Special 2 | . . . . . . . . . . . . . . . . . . . . 2 Average Slot Usage (%) 96 | . 99 100 100 99 99 99 99 99 99 99 82 98 97 93 93 77 94 93 87 86 Engine 5 | . 13 14 14 14 9 7 7 5 6 6 6 5 . . . . . . . . Core 1 | . . . . . . . . . . . . . 1 4 5 5 5 5 1 . Treads 8 | . 27 28 28 27 26 23 23 18 . . . . . . . . . . . . Leg 13 | . . . . . . . . 1 19 20 20 20 22 23 23 23 23 21 15 8 Device 10 | . 2 . . . 8 7 4 16 13 12 13 13 11 6 10 11 11 15 19 21 Storage 7 | . 14 14 14 14 9 7 7 6 6 6 6 6 5 5 5 5 5 5 4 3 Processor 20 | . 10 14 14 14 9 15 24 22 25 26 26 26 27 27 21 17 17 15 12 4 Protection 5 | . 1 . . . 8 14 7 6 6 6 6 5 5 4 6 10 11 9 6 4 Energy Gun 4 | . 13 14 14 11 . . . 2 6 6 1 5 . 2 . . . . 1 1 Energy Cannon 1 | . . . . . 3 . . . . . . . . 2 5 . 5 5 2 6 Ballistic Gun 8 | . 14 14 14 16 21 15 9 6 7 9 . 5 5 4 9 . 5 5 2 . Ballistic Cannon 3 | . . . . . 1 7 13 6 4 2 . 5 10 6 1 . 1 . 5 3 Peak Build Rating 119 | 7 11 11 14 16 33 39 49 68 71 76 75 76 86 88 86 86 87 97 115 119 Average Rating 62 | 5 9 11 12 13 26 38 45 55 68 71 61 74 81 85 85 72 85 95 100 103 On Entrance 54 | . 7 11 11 14 16 33 39 46 67 71 75 75 66 85 84 86 86 87 97 90 Avg Prop Armor Cover (%) 5 | . . . . . . . . 7 . 4 . . 4 . . . . . 5 5 Naked Turns . | . . . . . . . . . . . . . . . . . . . . . Heaviest Build 126 | 12 89 89 89 92 105 110 116 126 116 124 116 123 86 99 108 102 102 102 112 113 Greatest Support 93 | 40 40 40 40 40 64 64 66 66 48 48 48 48 68 68 63 63 68 68 93 56 Greatest Overweight (x) 37 | . 2 2 2 4 1 1 1 37 3 3 2 2 1 1 1 1 1 1 6 4 Average Overweight (x) 1 | . 1 2 2 2 1 1 1 1 2 2 2 2 1 1 1 1 1 1 1 2 Largest Inventory Capacity 25 | 8 25 25 25 25 25 25 25 25 25 25 25 25 25 20 20 20 20 20 20 20 Average Capacity 22 | 7 19 25 25 25 25 25 25 25 25 25 25 25 20 20 20 20 20 20 20 18 Most Carried 25 | 5 24 25 25 25 25 24 25 25 25 25 25 25 20 20 20 20 20 20 20 20 Average Carried 22 | 3 16 24 24 22 24 23 24 24 24 24 25 24 19 19 20 20 20 18 19 17 Final Capacity 25 | 8 25 25 25 25 25 25 25 25 25 25 25 25 20 20 20 20 20 20 20 5 Final Carried 25 | 5 24 24 25 25 25 23 25 25 25 25 25 21 20 20 20 20 20 20 17 4 Class Distribution -------------------- 21% | Derelict-Skirmisher 19% | Mutant 16% | Skirmisher 13% | Derelict-Gunner 10% | Gunner 4% | Scavenger-Gunner 3% | Hacker-Skirmisher Dominant Class ---------------- Mutant | -10/Materials Mutant | -10/Mines Mutant | -10/Exiles Mutant | -9/Mines Gunner | -8/Materials Tank | -7/Factory Gunner | -7/DSF Assassin | -6/Factory Skirmisher | -6/Lower Caves Skirmisher | -6/Lower Caves Mutant | -6/Data Miner Derelict-Skirmisher | -5/Proximity Caves Derelict-Skirmisher | -5/Factory Derelict-Skirmisher | -5/Upper Caves Derelict-Gunner | -5/Upper Caves Derelict-Mutant | -5/Zhirov Derelict-Gunner | -4/Proximity Caves Derelict-Assassin | -4/Factory Scavenger-Gunner | -3/Research Hacker-Skirmisher | -3/Testing Resources | -11 -10 -10 -10 -9 -8 -7 -7 -6 -6 -6 -6 -5 -5 -5 -5 -5 -4 -4 -3 -3 ----------- Run | Yrd Mat Min Exi Min Mat Fac DSF Fac Low Low Dat Pro Fac Upp Upp Zhi Pro Fac Res Tes Matter Collected 6760 | 250 445 61 . 256 364 . 323 1107 319 369 . 831 306 565 193 . 70 . 1016 285 Remotely 1014 | . . . . . . . . 505 . . . 330 179 . . . . . . . Salvage Created 6841 | 89 718 100 . 65 473 . 379 1366 203 348 . 726 256 360 232 . 35 . 987 504 Parts 300 | 5 47 6 . 6 16 . 19 59 12 17 . 39 7 11 7 . 6 . 24 19 Haulers Intercepted 5 | . . . . . 3 . . 1 . . . . . . . . . . 1 . Recyclers Shooed 8 | . 2 . . . 1 . . 5 . . . . . . . . . . . . Parts Field Recycled . | . . . . . . . . . . . . . . . . . . . . . Retrieved Matter . | . . . . . . . . . . . . . . . . . . . . . Parts Self-Destructed 77 | . . . . . . . . . 9 14 . 30 . 13 5 . 6 . . . Prevented 14 | . . . . . . . . . 2 1 . 7 . 2 1 . 1 . . . Parts Restored . | . . . . . . . . . . . . . . . . . . . . . Kills | -11 -10 -10 -10 -9 -8 -7 -7 -6 -6 -6 -6 -5 -5 -5 -5 -5 -4 -4 -3 -3 ------- Run | Yrd Mat Min Exi Min Mat Fac DSF Fac Low Low Dat Pro Fac Upp Upp Zhi Pro Fac Res Tes Combat Hostiles Destroyed 124 | . 14 2 . 1 5 . 7 17 7 8 . 18 5 7 5 . 5 . 15 8 Guns 49 | . 14 2 . 1 4 . 1 6 5 4 . 5 2 3 . . . . 2 . Cannons 50 | . . . . . 1 . 6 11 . 1 . 7 3 4 4 . . . 7 6 AOE 20 | . . . . . . . . . 2 3 . 5 . . 1 . 5 . 4 . Classes Destroyed 21 | 2 6 . . . 2 . 3 3 . 1 . . . 1 . . . . 2 1 Worker 5 | . 1 . . . . . . 2 . . . . . . . . . . . 2 Builder 2 | . . . . . . . . 2 . . . . . . . . . . . . Tunneler 3 | 1 . . . 1 . . . 1 . . . . . . . . . . . . Hauler 5 | . . . . . 3 . . 1 . . . . . . . . . . 1 . Recycler 11 | 1 2 . . . 1 . . 5 . . . . . . . . . . 2 . Mechanic 1 | . 1 . . . . . . . . . . . . . . . . . . . Operator 2 | . 1 . . . . . . . . . . . . . . . . . 1 . Watcher 4 | . 2 . . . . . . 1 . . . . . . . . . . 1 . Swarmer 34 | . 3 . . . . . . . 7 5 . 9 . 1 . . 5 . 4 . Cutter 2 | . . . . . . . . 2 . . . . . . . . . . . . Grunt 51 | . 11 2 . 1 3 . 4 10 . . . 5 3 4 3 . . . 1 4 Brawler 5 | . . . . . . . 1 2 . . . 1 . . 1 . . . . . Duelist 1 | . . . . . . . . . . . . . . . . . . . 1 . Sentry 10 | . . . . . 2 . . . . 1 . 1 2 1 1 . . . 2 . Specialist 3 | . . . . . . . 1 . . . . . . . . . . . . 2 Hunter 7 | . . . . . . . 2 . . 1 . 2 . . . . . . 2 . Programmer 7 | . . . . . . . . 3 . . . . . . . . . . 4 . Heavy 1 | . . . . . . . . . . . . . . . . . . . 1 . Behemoth 1 | . . . . . . . . . . . . . . 1 . . . . . . Striker 2 | . . . . . . . . . . . . . . . . . . . . 2 Mutant 1 | . . . . . . . . . . 1 . . . . . . . . . . Best Kill Streak 6 | 2 5 2 . 1 2 . 3 6 4 3 . 4 3 3 4 . 5 . 4 2 Combat Bots Only 5 | . 3 2 . 1 2 . 3 4 4 3 . 4 3 3 4 . 5 . 3 2 Max Kills in Single Turn 3 | 1 1 1 . 1 1 . 1 3 2 2 . 3 1 1 1 . 2 . 2 1 Gunslinging 1 | . . . . . . . . . 1 . . . . . . . . . . . Exploded 3 | . . . . . . . . . 2 2 . 3 . . 1 . 2 . 1 . Melee . | . . . . . . . . . . . . . . . . . . . . . Uniques/NPCs Destroyed . | . . . . . . . . . . . . . . . . . . . . . Combat | -11 -10 -10 -10 -9 -8 -7 -7 -6 -6 -6 -6 -5 -5 -5 -5 -5 -4 -4 -3 -3 -------- Run | Yrd Mat Min Exi Min Mat Fac DSF Fac Low Low Dat Pro Fac Upp Upp Zhi Pro Fac Res Tes Hostile Shots Fired 1038 | . 84 9 . 34 30 . 32 89 52 65 . 107 26 59 35 . 10 9 194 203 Missed 289 | . 21 2 . 5 10 . 10 23 17 19 . 31 6 23 13 . 3 3 50 53 Hits 749 | . 63 7 . 29 20 . 22 66 35 46 . 76 20 36 22 . 7 6 144 150 Melee 19 | . . . . . . . . 4 . . . . . . 1 . . . 6 8 Projectile 730 | . 63 7 . 29 20 . 22 62 35 46 . 76 20 36 21 . 7 6 138 142 AOE 2 | . . . . . . . . 2 . . . . . . . . . . . . Critical Strikes 35 | . . . . 1 . . 1 1 . 2 . 4 . 1 . . 1 1 9 14 Part Disruptions 4 | . . . . . . . . . . 1 . . . . . . . . 1 2 Damage Taken 14844 | . 703 80 . 364 327 . 475 1024 604 628 . 1424 403 610 544 . 99 135 3702 3722 Core 1968 | . 64 . . 79 62 . 32 53 27 63 . 121 41 55 10 . 27 25 432 877 Absorbed by Shields 210 | . . . . . . . . 63 . . . . . 39 . . . . 108 . Redirected to Shielding 12 | . 12 . . . . . . . . . . . . . . . . . . . Ignored by Resistances 8 | . . . . . . . . 8 . . . . . . . . . . . . Regen/Repaired (Parts) 840 | . 179 . . . . . . 40 . . . . 205 . . . . 416 . . Core Remaining (%) 82 | 100 . . . 42 88 . 95 . . . . 68 . . . . 86 97 . . Volleys Fired 463 | 7 73 6 . 11 31 . 13 60 11 22 . 42 18 21 49 . 3 3 58 35 Largest 3 | 2 2 2 . 2 3 . 3 3 3 3 . 3 3 3 3 . 1 2 3 3 Hottest 443 | 60 85 85 . 85 115 . 111 143 143 162 . 173 116 178 164 . 39 120 224 443 Shots Fired 1036 | 14 141 12 2 22 86 . 39 143 18 54 . 108 43 55 65 . 3 5 137 89 Gun 547 | 14 141 12 2 22 75 . 15 72 12 39 . 53 14 22 8 . . 2 24 20 Cannon 457 | . . . . . 11 . 24 71 1 12 . 49 29 33 53 . . 2 105 67 Launcher 32 | . . . . . . . . . 5 3 . 6 . . 4 . 3 1 8 2 Special . | . . . . . . . . . . . . . . . . . . . . . Kinetic 641 | 7 73 6 . 11 81 . 39 117 8 35 . 71 43 40 12 . . 2 83 13 Thermal 358 | 7 68 6 2 11 . . . 26 5 16 . 31 . 15 49 . . 2 46 74 Explosive 18 | . . . . . . . . . . . . . . . 4 . 3 1 8 2 Electromagnetic 19 | . . . . . 5 . . . 5 3 . 6 . . . . . . . . Robot Hit Streak 22 | 4 17 22 . 6 9 . 14 19 2 10 . 10 11 16 7 . . 1 13 13 Robot Miss Streak 4 | 2 4 1 1 3 4 . 3 4 2 3 . 4 2 3 2 . 1 4 3 3 Penetration Max 1 | . . . . . . . . . . 1 . 1 . . 1 . . . . . Secondary Targets 4 | . 2 . . . 1 . . . 1 . . . . . . . . . . . Max Gunslinging Chain 1 | . 1 . . . 1 . . . 1 . . . . . . . . . . . Shots Hit Robots 615 | 8 101 10 . 14 57 . 25 88 6 31 . 54 28 37 18 . . 1 81 56 Core Hits 297 | 3 34 4 . 6 17 . 16 58 8 16 . 33 13 12 13 . 8 1 35 20 Critical Kills 11 | . . . . . . . . 1 1 1 . 2 . 1 . . . . 3 2 Critical Parts Destroyed 7 | . . . . . . . . 1 . 2 . 2 . 1 1 . . . . . Critical Strikes 51 | . 1 . . . . . . 9 4 7 . 10 3 3 2 . . . 9 3 Burn 10 | . 1 . . . . . . . 2 3 . 4 . . . . . . . . Meltdown 5 | . . . . . . . . . . . . . . . . . . . 3 2 Destroy 13 | . . . . . . . . 1 1 3 . 4 1 2 1 . . . . . Blast 21 | . . . . . . . . 7 1 1 . 2 2 1 1 . . . 6 . Smash 1 | . . . . . . . . 1 . . . . . . . . . . . . Sever 1 | . . . . . . . . . . . . . . . . . . . . 1 Melee Attacks 32 | . 1 . . . 1 . . 15 . 1 . . 1 . . . . 8 3 2 Impact 31 | . 1 . . . 1 . . 15 . 1 . . 1 . . . . 8 3 1 Slashing 1 | . . . . . . . . . . . . . . . . . . . . 1 Piercing . | . . . . . . . . . . . . . . . . . . . . . Sneak Attacks 2 | . . . . . . . . 2 . . . . . . . . . . . . Combat Hostiles . | . . . . . . . . . . . . . . . . . . . . . Follow-up Attacks . | . . . . . . . . . . . . . . . . . . . . . Damage Inflicted 17242 | 91 1312 136 . 175 1017 . 574 2829 242 637 . 1595 718 1063 703 . 440 55 3556 2099 Guns 5879 | 91 1312 136 . 175 795 . 163 951 92 376 . 384 242 289 167 . . 23 324 359 Cannons 8831 | . . . . . 222 . 411 1695 12 120 . 902 476 774 311 . . 32 2425 1451 Explosions 2263 | . . . . . . . . . 138 141 . 309 . . 225 . 440 . 807 203 Melee 254 | . . . . . . . . 168 . . . . . . . . . . . 86 Ramming 15 | . . . . . . . . 15 . . . . . . . . . . . . Kinetic 9381 | 38 583 37 . 70 911 . 574 2372 50 280 . 1016 718 648 252 . . 23 1636 173 Thermal 5223 | 53 729 99 . 105 . . . 274 54 216 . 270 . 415 226 . . 32 1113 1637 Explosive 1675 | . . . . . . . . . . . . . . . 225 . 440 . 807 203 Electromagnetic 694 | . . . . . 106 . . . 138 141 . 309 . . . . . . . . Impact 168 | . . . . . . . . 168 . . . . . . . . . . . . Slashing 86 | . . . . . . . . . . . . . . . . . . . . 86 Piercing . | . . . . . . . . . . . . . . . . . . . . . Highest Corruption 30 | . 2 2 2 2 . . . 7 7 7 7 7 . . 2 2 2 . 7 30 Average Corruption 5 | . 2 2 2 2 . . . 6 7 7 7 7 . . 2 2 2 . 4 8 Corruption Purged . | . . . . . . . . . . . . . . . . . . . . . Corruption Blocked . | . . . . . . . . . . . . . . . . . . . . . Effects 319 | . 5 8 15 5 . . . 31 52 52 8 84 . . 5 5 9 . 13 27 Message Errors 73 | . 1 4 5 . . . . 7 12 10 1 25 . . 1 1 3 . 2 1 Matter Fused 82 | . 2 2 4 2 . . . 12 17 7 3 23 . . 3 . 1 . 4 2 Heat Flow Errors 37 | . . . 2 2 . . . 6 4 9 1 7 . . . . 1 . 2 3 Energy Discharges 32 | . . 1 . . . . . 1 5 11 2 3 . . . . 2 . 3 4 Parts Rejected 2 | . . . . . . . . . 1 . . . . . . . . . . 1 Parts Fused 6 | . . 1 1 . . . . . . . . 3 . . . . . . . 1 Data Loss (minor) 41 | . 1 . 1 1 . . . 3 7 8 . 9 . . . 3 2 . 1 5 Data Loss (major) 15 | . 1 . . . . . . 2 2 3 1 4 . . . . . . 1 1 Misfires 15 | . . . 2 . . . . . 1 3 . 8 . . . . . . . 1 Alerts 6 | . . . . . . . . . 1 . . 1 . . 1 1 . . . 2 Misdirections 2 | . . . . . . . . . . . . . . . . . . . . 2 Weapon Failures 8 | . . . . . . . . . 2 1 . 1 . . . . . . . 4 Overload Shots 5 | . . . . . . . . . . . . . . . . . . . . 5 Overflow Damage 270 | . . . . . . . . 79 . . . 18 . . . . . . 133 40 Projectiles 163 | . . . . . . . . 33 . . . 14 . . . . . . 90 26 Explosions 61 | . . . . . . . . . . . . 4 . . . . . . 43 14 Melee 46 | . . . . . . . . 46 . . . . . . . . . . . . Knockbacks 48 | . . . . . 2 . . 23 . . . 6 6 . . . . . 9 2 Impact 1 | . . . . . . . . 1 . . . . . . . . . . . . Kinetic 41 | . . . . . 2 . . 18 . . . 5 6 . . . . . 8 2 Secondary 6 | . . . . . . . . 4 . . . 1 . . . . . . 1 . Self-Inflicted Damage 229 | . . . . . . . . . 76 . . 13 . . 64 . . . 26 50 Shots 10 | . . . . . . . . . 4 . . 2 . . 2 . . . 1 1 Rammed 1 | . . . . . . . . 1 . . . . . . . . . . . . Targets Rammed 5 | . . . . . . . . 5 . . . . . . . . . . . . Kicked 4 | . . . . . . . . 4 . . . . . . . . . . . . Crushed . | . . . . . . . . . . . . . . . . . . . . . Highest Temperature 513 | . 318 232 279 211 162 . . 299 232 244 . 263 72 293 280 . 188 . 308 513 Average Temperature 87 | . 76 118 100 83 45 . . 74 94 76 . 95 33 91 113 . 98 . 92 198 Received Heat Transfer 2296 | . 336 48 . 219 168 . 153 276 . 158 . 249 129 108 171 . . 18 215 48 Effects 8 | . 1 . . . . . . 2 . . . . . 1 3 . . . . 1 Energy Bleed 2 | . 1 . . . . . . . . . . . . 1 . . . . . . Interference 6 | . . . . . . . . 2 . . . . . . 3 . . . . 1 Siege Activations . | . . . . . . . . . . . . . . . . . . . . . Martial Activations . | . . . . . . . . . . . . . . . . . . . . . Shielding Activations . | . . . . . . . . . . . . . . . . . . . . . Robots Disrupted 1 | . . . . . . . . . . . . 1 . . . . . . . . Combat Hostiles 1 | . . . . . . . . . . . . 1 . . . . . . . . Robots Corrupted 1 | . . . . . . . . 1 . . . . . . . . . . . . Combat Hostiles . | . . . . . . . . . . . . . . . . . . . . . Parts Fried 2 | . . . . . . . . 1 . . . 1 . . . . . . . . Impact Corruptions 3 | . . . . . . . . 2 . . . . . . . . . . 1 . Robots Melted 6 | . . . . . . . . . . . . 1 . . . . . . 3 2 Combat Hostiles 5 | . . . . . . . . . . . . 1 . . . . . . 2 2 Parts Melted 17 | . 3 . . . . . . 1 . 3 . 1 . . . . . . 3 6 Heat Transferred 9632 | 125 1698 222 . 236 . . . 518 350 900 . 1150 . 611 350 . . 50 1533 1889 Parts Sabotaged . | . . . . . . . . . . . . . . . . . . . . . Parts Stolen . | . . . . . . . . . . . . . . . . . . . . . Parts Stripped . | . . . . . . . . . . . . . . . . . . . . . Power Chain Reactions 1 | . . . . . . . . . . . . 1 . . . . . . . . Alert | -11 -10 -10 -10 -9 -8 -7 -7 -6 -6 -6 -6 -5 -5 -5 -5 -5 -4 -4 -3 -3 ------- Run | Yrd Mat Min Exi Min Mat Fac DSF Fac Low Low Dat Pro Fac Upp Upp Zhi Pro Fac Res Tes Maximum Alert Level 1 | . . . . . 1 . 1 1 . . . . . . . . . . 1 . Low Security (%) 89 | 100 100 100 . 100 94 100 91 71 . . . . 100 . . . . 100 73 100 Level 1 10 | . . . . . 6 . 8 28 . . . . . . . . . . 26 . Level 2 . | . . . . . . . . . . . . . . . . . . . . . Level 3 . | . . . . . . . . . . . . . . . . . . . . . Level 4 . | . . . . . . . . . . . . . . . . . . . . . Level 5 . | . . . . . . . . . . . . . . . . . . . . . High Security . | . . . . . . . . . . . . . . . . . . . . . Max Security . | . . . . . . . . . . . . . . . . . . . . . Sterilizations 1 | . . . . . . . 1 . . . . . . . . . . . . . Peak Influence 275 | 10 96 63 . 70 221 85 218 255 . . . . 129 . . . . 16 275 127 Initial 122 | . . 13 . . 7 85 38 114 . . . . 58 . . . . . . 122 Average 58 | . 26 9 . 31 35 70 106 117 . . . . 62 . . . . 1 80 35 Influence Increases 4277 | 10 445 50 . 182 365 . 210 630 190 160 . 440 207 150 110 . 110 56 656 306 Destroy 0b10 Robot/C 2680 | . 280 40 . 100 220 . 160 340 140 140 . 360 100 140 100 . 100 . 300 160 Destroy 0b10 Robot/NC 165 | 10 35 . . 5 20 . . 60 . . . . . . . . . . 25 10 Destroy Leader 498 | . 74 10 . 10 66 . 30 84 20 20 . 50 30 10 10 . 10 . 74 . Allied During Kill 72 | . . . . 22 46 . 4 . . . . . . . . . . . . . Successful Hack 142 | . 10 . . . 11 . . 24 . . . . 14 . . . . 22 37 24 Disable Machine 150 | . . . . . . . 15 60 . . . . 15 . . . . . . 60 Destroy Structure 315 | . 1 . . . 2 . 1 17 . . . . 18 . . . . 34 190 52 Partial Spotted 15 | . . . . . . . . 15 . . . . . . . . . . . . Lose Combat Pursuer 240 | . 45 . . 45 . . . 30 30 . . 30 30 . . . . . 30 . Influence Decreases 4277 | 10 411 84 . 162 196 134 47 622 389 187 . 346 286 160 115 . 110 56 438 524 Entered New Map 489 | . . 21 . . 13 104 17 104 84 6 . . 36 6 2 . . . . 96 Time Decay 3210 | 10 391 63 . 152 163 30 . 492 295 181 . 296 230 154 103 . 110 56 278 206 Lost Part 431 | . 20 . . 10 . . 10 26 10 . . 50 20 . 10 . . . 160 115 Lost Ally 40 | . . . . . 20 . 20 . . . . . . . . . . . . . Purge Threat 107 | . . . . . . . . . . . . . . . . . . . . 107 Squads Dispatched 22 | . 4 . . . 2 . 1 7 . . . . 2 . . . . 1 3 2 Investigation 4 | . 2 . . . . . . 1 . . . . 1 . . . . . . . Extermination 7 | . . . . . . . . 3 . . . . 1 . . . . . 2 1 Reinforcement 10 | . 2 . . . 1 . 1 3 . . . . . . . . . 1 1 1 Assault . | . . . . . . . . . . . . . . . . . . . . . Garrison 1 | . . . . . 1 . . . . . . . . . . . . . . . Intercept . | . . . . . . . . . . . . . . . . . . . . . Searches Triggered . | . . . . . . . . . . . . . . . . . . . . . Construction Impeded 2 | . . . . . . . . 1 . . . . . . . . . . . 1 Haulers Reinforced 1 | . . . . . . . . . . . . . . . . . . 1 . . Active Scanning Responses . | . . . . . . . . . . . . . . . . . . . . . Cargo Convoy Interrupts . | . . . . . . . . . . . . . . . . . . . . . Stealth | -11 -10 -10 -10 -9 -8 -7 -7 -6 -6 -6 -6 -5 -5 -5 -5 -5 -4 -4 -3 -3 --------- Run | Yrd Mat Min Exi Min Mat Fac DSF Fac Low Low Dat Pro Fac Upp Upp Zhi Pro Fac Res Tes Distress Signals 5 | . 3 . . . 1 . . . . . . . . . . . . . 1 . Communications Jammed 4 | . . . . . . . . . . . . . . . . . . . 4 . Distress Signals 4 | . . . . . . . . . . . . . . . . . . . 4 . Times Spotted 179 | . 28 2 . 4 11 . 8 23 9 8 . 18 9 8 10 . 5 4 21 11 Peak Tracking Total 6 | . 4 2 . 3 3 . 3 4 4 3 . 4 6 4 5 . 5 4 3 3 Tactical Retreats 12 | . 2 . . 2 . . . 2 1 . . 2 1 . . . . . 2 . Traps | -11 -10 -10 -10 -9 -8 -7 -7 -6 -6 -6 -6 -5 -5 -5 -5 -5 -4 -4 -3 -3 ------- Run | Yrd Mat Min Exi Min Mat Fac DSF Fac Low Low Dat Pro Fac Upp Upp Zhi Pro Fac Res Tes Traps Triggered 8 | . 2 . . . . . . 2 . . . . 1 . . . . . 3 . Indirectly . | . . . . . . . . . . . . . . . . . . . . . Trap Hack Attempts . | . . . . . . . . . . . . . . . . . . . . . Triggered . | . . . . . . . . . . . . . . . . . . . . . Disarmed . | . . . . . . . . . . . . . . . . . . . . . Reprogrammed . | . . . . . . . . . . . . . . . . . . . . . Reused . | . . . . . . . . . . . . . . . . . . . . . Traps Extracted . | . . . . . . . . . . . . . . . . . . . . . Installed . | . . . . . . . . . . . . . . . . . . . . . Triggered . | . . . . . . . . . . . . . . . . . . . . . Machines | -11 -10 -10 -10 -9 -8 -7 -7 -6 -6 -6 -6 -5 -5 -5 -5 -5 -4 -4 -3 -3 ---------- Run | Yrd Mat Min Exi Min Mat Fac DSF Fac Low Low Dat Pro Fac Upp Upp Zhi Pro Fac Res Tes Machines Disabled 11 | . . . . . . . 1 4 . 1 . . 1 . . . . . . 4 Max in Single Turn 1 | . . . . . . . 1 1 . 1 . . 1 . . . . . . 1 Garrison Access 2 | . . . . . . . . . . . . . . . . . . . 1 1 Machines Repaired . | . . . . . . . . . . . . . . . . . . . . . Machines Dismantled . | . . . . . . . . . . . . . . . . . . . . . Machines Sabotaged . | . . . . . . . . . . . . . . . . . . . . . Overloaded Fab Kills . | . . . . . . . . . . . . . . . . . . . . . Hacking | -11 -10 -10 -10 -9 -8 -7 -7 -6 -6 -6 -6 -5 -5 -5 -5 -5 -4 -4 -3 -3 --------- Run | Yrd Mat Min Exi Min Mat Fac DSF Fac Low Low Dat Pro Fac Upp Upp Zhi Pro Fac Res Tes Machines Accessed 37 | . 5 . 2 . 2 1 . 3 . . 4 . 3 1 1 6 . 2 4 3 Terminals 13 | . 3 . . . 1 1 . 2 . . . . 1 . . . . 1 2 2 Fabricators 2 | . . . . . . . . . . . . . 1 . . . . . 1 . Repair Stations 4 | . 1 . . . . . . 1 . . . . 1 . . . . 1 . . Recycling Units 2 | . 1 . . . 1 . . . . . . . . . . . . . . . Scanalyzers . | . . . . . . . . . . . . . . . . . . . . . Garrison Access 2 | . . . . . . . . . . . . . . . . . . . 1 1 Total Hacks 128 | . 15 . 24 . 4 1 . 10 . . 27 . 9 1 1 18 . 6 4 8 Successful 105 | . 11 . 24 . 2 1 . 4 . . 27 . 3 1 1 18 . 3 3 7 Failed 23 | . 4 . . . 2 . . 6 . . . . 6 . . . . 3 1 1 Catastrophic 3 | . . . . . . . . 1 . . . . 1 . . . . 1 . . Database Lockouts . | . . . . . . . . . . . . . . . . . . . . . Manual 26 | . 10 . 1 . 1 . . 4 . . . . 3 . . . . 2 2 3 Terminals 32 | . 10 . . . 2 1 . 6 . . . . 3 . . . . 2 2 6 Fabricators 3 | . . . . . . . . . . . . . 2 . . . . . 1 . Repair Stations 16 | . 4 . . . . . . 4 . . . . 4 . . . . 4 . . Recycling Units 3 | . 1 . . . 2 . . . . . . . . . . . . . . . Scanalyzers . | . . . . . . . . . . . . . . . . . . . . . Garrison Access 3 | . . . . . . . . . . . . . . . . . . . 1 2 Terminal Hacks 86 | . 5 . 24 . 2 1 . 1 . . 27 . . 1 1 18 . . 1 5 Record 42 | . . . 23 . . . . . . . 11 . . . . 7 . . . 1 Part Schematic 12 | . . . . . . . . . . . 9 . . . . 3 . . . . Robot Schematic 4 | . . . . . . . . . . . 4 . . . . . . . . . Robot Analysis 10 | . 5 . . . 1 . . . . . . . . . . 4 . . . . Prototype ID Bank 7 | . . . . . . . . . . . 3 . . . . 4 . . . . Open Door 2 | . . . . . . . . . . . . . . 1 1 . . . . . Open DSF 1 | . . . . . . 1 . . . . . . . . . . . . . . Branch Access Points 2 | . . . . . . . . 1 . . . . . . . . . . 1 . Unreport Threat 1 | . . . . . . . . . . . . . . . . . . . . 1 Patrol Status 1 | . . . . . . . . . . . . . . . . . . . . 1 Hauler Manifests 1 | . . . . . . . . . . . . . . . . . . . . 1 Registered Components 1 | . . . . . . . . . . . . . . . . . . . . 1 Zone Layout 1 | . . . . . 1 . . . . . . . . . . . . . . . Proto ID Catalog 1 | . . . 1 . . . . . . . . . . . . . . . . . Fabricator Hacks 1 | . . . . . . . . . . . . . 1 . . . . . . . Load Schematic 1 | . . . . . . . . . . . . . 1 . . . . . . . Repair Station Hacks 11 | . 4 . . . . . . 3 . . . . 2 . . . . 2 . . Scan Component 6 | . 2 . . . . . . 2 . . . . 1 . . . . 1 . . Repair 5 | . 2 . . . . . . 1 . . . . 1 . . . . 1 . . Recycling Unit Hacks 1 | . 1 . . . . . . . . . . . . . . . . . . . Retrieve Components 1 | . 1 . . . . . . . . . . . . . . . . . . . Scanalyzer . | . . . . . . . . . . . . . . . . . . . . . Garrison Access Hacks 2 | . . . . . . . . . . . . . . . . . . . 1 1 Seal Access 2 | . . . . . . . . . . . . . . . . . . . 1 1 Unauthorized Hacks 4 | . 1 . . . . . . . . . . . . . . . . 1 1 1 Terminals 4 | . 1 . . . . . . . . . . . . . . . . 1 1 1 Botnet 4 | . 1 . . . . . . . . . . . . . . . . 1 1 1 Fabricators . | . . . . . . . . . . . . . . . . . . . . . Repair Stations . | . . . . . . . . . . . . . . . . . . . . . Recycling Units . | . . . . . . . . . . . . . . . . . . . . . Scanalyzers . | . . . . . . . . . . . . . . . . . . . . . Garrison Access . | . . . . . . . . . . . . . . . . . . . . . Data Cores Recovered 1 | . . . . . . . . . . . . . . . . . . . 1 . Used . | . . . . . . . . . . . . . . . . . . . . . Hacking Detections 17 | . 4 . . . 2 . . 3 . . . . 3 . . . . 2 1 2 Full Trace Events 2 | . 1 . . . . . . . . . . . 1 . . . . . . . Feedback Events . | . . . . . . . . . . . . . . . . . . . . . Feedback Blocked . | . . . . . . . . . . . . . . . . . . . . . Robot Schematics Acquired 4 | . . . . . . . . . . . 4 . . . . . . . . . Robots Built . | . . . . . . . . . . . . . . . . . . . . . Authchips . | . . . . . . . . . . . . . . . . . . . . . Time . | . . . . . . . . . . . . . . . . . . . . . Total Robot Build Rating . | . . . . . . . . . . . . . . . . . . . . . Part Schematics Acquired 12 | . . . . . . . . . . . 9 . . . . 3 . . . . Parts Built . | . . . . . . . . . . . . . . . . . . . . . Authchips . | . . . . . . . . . . . . . . . . . . . . . Time . | . . . . . . . . . . . . . . . . . . . . . Total Part Build Rating . | . . . . . . . . . . . . . . . . . . . . . Part Studies Acquired . | . . . . . . . . . . . . . . . . . . . . . Parts Repaired 5 | . 2 . . . . . . 1 . . . . 1 . . . . 1 . . Time 118 | . 52 . . . . . . 16 . . . . 25 . . . . 25 . . Parts Recycled . | . . . . . . . . . . . . . . . . . . . . . Recycled Matter . | . . . . . . . . . . . . . . . . . . . . . Retrieved Matter . | . . . . . . . . . . . . . . . . . . . . . Retrieved Components 2 | . 2 . . . . . . . . . . . . . . . . . . . Parts Scanalyzed . | . . . . . . . . . . . . . . . . . . . . . Part Schematics Acquired . | . . . . . . . . . . . . . . . . . . . . . Parts Damaged . | . . . . . . . . . . . . . . . . . . . . . Bothacking | -11 -10 -10 -10 -9 -8 -7 -7 -6 -6 -6 -6 -5 -5 -5 -5 -5 -4 -4 -3 -3 ------------ Run | Yrd Mat Min Exi Min Mat Fac DSF Fac Low Low Dat Pro Fac Upp Upp Zhi Pro Fac Res Tes Used RIF Installer . | . . . . . . . . . . . . . . . . . . . . . Robots Hacked . | . . . . . . . . . . . . . . . . . . . . . Non-combat . | . . . . . . . . . . . . . . . . . . . . . Combat . | . . . . . . . . . . . . . . . . . . . . . Robot Hacks Applied . | . . . . . . . . . . . . . . . . . . . . . Relay Couplers Released 3 | . . . . . . . . . . . . . . . . . . . . 3 Machine Destruction 3 | . . . . . . . . . . . . . . . . . . . . 3 Fabnet Peak Effective % . | . . . . . . . . . . . . . . . . . . . . . Robots Rewired 3 | . . . 3 . . . . . . . . . . . . . . . . . Allies Hacked . | . . . . . . . . . . . . . . . . . . . . . Hacks Repelled . | . . . . . . . . . . . . . . . . . . . . . Allies | -11 -10 -10 -10 -9 -8 -7 -7 -6 -6 -6 -6 -5 -5 -5 -5 -5 -4 -4 -3 -3 -------- Run | Yrd Mat Min Exi Min Mat Fac DSF Fac Low Low Dat Pro Fac Upp Upp Zhi Pro Fac Res Tes Total Allies 4 | . . . 3 1 . . . . . . . . . . . . . . . . Largest Group 4 | . . . 3 4 3 2 2 . . . . . . . . . . . . . Highest-Rated Group 81 | . . . 50 81 50 42 42 . . . . . . . . . . . . . Highest-Rated Ally 31 | . . . 21 31 21 21 21 . . . . . . . . . . . . . Initial Warlord ECA Mod 9 | . . . . . . . . 9 9 9 9 8 8 8 8 8 7 7 6 6 Total Orders . | . . . . . . . . . . . . . . . . . . . . . Ally Attacks 52 | . . . . 14 30 . 8 . . . . . . . . . . . . . Total Damage 913 | . . . . 226 481 . 206 . . . . . . . . . . . . . Kills 11 | . . . . 4 6 . 1 . . . . . . . . . . . . . Allies Corrupted . | . . . . . . . . . . . . . . . . . . . . . Allies Melted . | . . . . . . . . . . . . . . . . . . . . . Intel | -11 -10 -10 -10 -9 -8 -7 -7 -6 -6 -6 -6 -5 -5 -5 -5 -5 -4 -4 -3 -3 ------- Run | Yrd Mat Min Exi Min Mat Fac DSF Fac Low Low Dat Pro Fac Upp Upp Zhi Pro Fac Res Tes Active Infowar (turns) 16279 | 27 288 . . . 697 74 355 1749 1641 1764 230 3157 491 1522 1508 308 423 422 1162 461 Sensors 10697 | . . . . . . . . . 1641 1682 230 2391 335 1514 1508 308 423 422 100 143 Terrain 4151 | . . . . . . . . 1522 2 . . 445 372 1 . . . 422 926 461 Seismic 2715 | 27 288 . . . 697 74 14 1615 . . . . . . . . . . . . Machine Analysis 10608 | . . . . . . 74 355 1749 1641 1764 230 3157 491 1147 . . . . . . Jamming 1084 | . . . . . . . . . . . . . . . . . . . 1084 . Robot Analysis Total 10 | . 5 . . . 1 . . . . . . . . . . 4 . . . . Derelict Logs Recovered 7 | . . 1 . . . . . . 2 1 . 2 . 1 . . . . . . Drone Launches . | . . . . . . . . . . . . . . . . . . . . . Drone Recoveries . | . . . . . . . . . . . . . . . . . . . . . Exploration | -11 -10 -10 -10 -9 -8 -7 -7 -6 -6 -6 -6 -5 -5 -5 -5 -5 -4 -4 -3 -3 ------------- Run | Yrd Mat Min Exi Min Mat Fac DSF Fac Low Low Dat Pro Fac Upp Upp Zhi Pro Fac Res Tes Turns Passed 19876 | 96 1726 464 916 382 700 74 355 1749 1641 1764 230 3157 491 1602 1641 308 423 422 1162 573 Spaces Moved 7393 | 42 533 139 274 104 229 32 126 602 612 641 87 949 170 768 733 157 216 184 515 280 Core 7 | 6 . . . . . . . 1 . . . . . . . . . . . . Treads 2040 | 36 533 139 274 104 229 32 126 567 . . . . . . . . . . . . Legs 4916 | . . . . . . . . 34 612 641 87 949 170 768 733 157 216 184 349 16 Wheels 430 | . . . . . . . . . . . . . . . . . . . 166 264 Hover . | . . . . . . . . . . . . . . . . . . . . . Flight . | . . . . . . . . . . . . . . . . . . . . . Fastest Speed 50 | 50 160 320 320 320 230 230 225 225 260 260 260 260 190 190 190 190 190 190 130 110 Average Speed 228 | 144 258 320 320 321 239 230 225 233 260 260 260 260 190 190 190 190 190 190 177 137 Slowest Speed 1900 | 160 320 320 320 480 240 230 230 1900 330 330 260 260 190 190 190 190 190 190 260 260 Overloaded Moves . | . . . . . . . . . . . . . . . . . . . . . Propulsion Burnouts . | . . . . . . . . . . . . . . . . . . . . . Robots Hopped . | . . . . . . . . . . . . . . . . . . . . . Potential Cave-ins 2 | . . . . . . . . . . . . . . 1 1 . . . . . Cave-ins Triggered . | . . . . . . . . . . . . . . . . . . . . . Exploration Rate (%) 45 | 4 65 48 61 15 20 1 93 17 73 79 70 88 6 81 70 62 52 8 13 28 Regions Visited 20 Branch Regions 12 Pre-discovered Areas 8 | . . 1 1 . . . . . 2 . 1 . . . . 3 . . . . Known Exits Taken 10 | . . . . . . 1 . 1 1 1 1 1 1 1 . . 1 . 1 . Unknown Exits Taken 9 | 1 1 1 1 1 1 . . . . . . . . . 1 1 . 1 . . Scrap Searched 18 | . . 1 . . . . . . 4 5 . 1 . 4 3 . . . . . Spaces Dug 78 | . 1 . . . 1 . . 8 . 4 . 2 3 . 24 . 15 15 5 . Terrain Destroyed 326 | . 1 . . . 2 . 1 14 . 8 . 19 8 12 81 . 26 16 112 26 Melee 20 | . 1 . . . 1 . . 6 . . . . 1 . . . . 8 3 . Projectile 134 | . . . . . 1 . 1 8 . 8 . 16 7 12 40 . . 1 23 17 AOE 172 | . . . . . . . . . . . . 3 . . 41 . 26 7 86 9 Terrain Rammed . | . . . . . . . . . . . . . . . . . . . . . Walls Destroyed . | . . . . . . . . . . . . . . . . . . . . . Machines Disabled . | . . . . . . . . . . . . . . . . . . . . . Actions | -11 -10 -10 -10 -9 -8 -7 -7 -6 -6 -6 -6 -5 -5 -5 -5 -5 -4 -4 -3 -3 --------- Run | Yrd Mat Min Exi Min Mat Fac DSF Fac Low Low Dat Pro Fac Upp Upp Zhi Pro Fac Res Tes Total 9460 | 61 742 155 317 136 326 33 168 795 642 699 92 1547 300 871 921 168 226 237 639 385 Wait 933 | . 94 1 . 1 2 . 1 30 . 1 . 532 73 21 125 1 5 31 4 11 Move 7373 | 41 532 138 273 103 228 31 125 601 611 640 86 948 169 767 732 156 215 183 514 280 Hop . | . . . . . . . . . . . . . . . . . . . . . Pick Up 154 | 6 24 5 2 8 26 . 9 19 3 8 . 2 7 11 2 1 . 5 11 5 Fast Attach 73 | 6 2 . . . 1 . 1 7 4 3 3 . 4 9 3 5 . 1 6 18 Attach 59 | 1 2 . . 6 4 2 . 5 . . . 6 4 4 . . . 2 15 8 Detach 10 | . . . . . . . . 1 . . . . 1 3 . . . . 3 2 Swap 155 | . 8 . . 2 8 . 8 31 8 11 . 17 9 15 6 . 2 1 17 12 Drop 156 | . 6 5 3 5 25 . 8 21 5 13 3 . 9 20 4 5 1 3 8 12 Fire 463 | 7 73 6 . 11 31 . 13 60 11 22 . 42 18 21 49 . 3 3 58 35 Melee 32 | . 1 . . . 1 . . 15 . 1 . . 1 . . . . 8 3 2 Ram . | . . . . . . . . . . . . . . . . . . . . . Kick 4 | . . . . . . . . 4 . . . . . . . . . . . . Crush 1 | . . . . . . . . 1 . . . . . . . . . . . . Escape Stasis 7 | . . . . . . . 2 . . . . . 5 . . . . . . . Rewire 40 | . . . 39 . . . 1 . . . . . . . . . . . . . Trap . | . . . . . . . . . . . . . . . . . . . . . Miscellaneous . | . . . . . . . . . . . . . . . . . . . . . Route ------- -11/Scrapyard -10/Materials (discovered 3 exits: [*Mat] / [*Min x2]) -10/Mines -10/Exiles -9/Mines -8/Materials -7/Factory -7/DSF -6/Factory (discovered 5 exits: *Fac / *Low x2 / *Ext x2) -6/Lower Caves -6/Lower Caves (discovered 2 exits: *Fac / *Dat) -6/Data Miner -5/Proximity Caves -5/Factory (discovered 3 exits: *Fac x2 / *Upp) -5/Upper Caves -5/Upper Caves (discovered 2 exits: *Fac / *Zhi) -5/Zhirov -4/Proximity Caves -4/Factory -3/Research (discovered 2 exits: *Tes x2) -3/Testing History --------- Turn | Location | Event 6 | -11/Scrapyard | Discovered new exit (range 15) 97 | -11/Scrapyard | Entered Materials 123 | -10/Materials | Discovered new exit (range 16) 311 | -10/Materials | Build established: Mutant 1283 | -10/Materials | Repaired Ion Engine 1310 | -10/Materials | Repaired Lgt. Treads 1392 | -10/Materials | Discovered new exit (range 12) 1564 | -10/Materials | Discovered new exit (range 15) 1823 | -10/Materials | Entered Mines 1939 | -10/Mines | Found a hidden stash of uninstalled traps 2271 | -10/Mines | Deemed a non-threat by the Exiles lab entrance 2275 | -10/Mines | Discovered new exit (range 5) 2287 | -10/Mines | Entered Exiles 2287 | -10/Exiles | Found Exiles lab destroyed 2620 | -10/Exiles | Learned location of Zion (-7) 2790 | -10/Exiles | Opened EX-Vault 2801 | -10/Exiles | Found Lightpack 2.0 3174 | -10/Exiles | Discovered new exit (range 10) 3203 | -10/Exiles | Entered Mines 3203 | -9/Mines | Accompanied by 3 allies 3234 | -9/Mines | Core integrity fell below 50% 3264 | -9/Mines | Lost 4 parts (1p1n2w) 3293 | -9/Mines | Received a Mining Laser from a helpful Derelict 3438 | -9/Mines | Discovered new exit (range 7) 3472 | -9/Mines | Joined a pair of Derelicts in attacking an 0b10 outpost 3585 | -9/Mines | Entered Materials 3585 | -8/Materials | Accompanied by 3 allies 3585 | -8/Materials | Evolved 4 slots: Propulsion x1, Utility x2, Weapon x1 4160 | -8/Materials | Build established: Gunner 4204 | -8/Materials | Garrison activated, responded to threat 4251 | -8/Materials | Discovered new exit (range 4) 4285 | -8/Materials | Entered Factory 4285 | -7/Factory | Accompanied by 2 allies 4285 | -7/Factory | Evolved 2 slots: Utility x2 4359 | -7/Factory | Identified exit to DSF 4359 | -7/Factory | Entered DSF 4359 | -7/DSF | Accompanied by 2 allies 4464 | -7/DSF | Additional patrols routed to DSF 4548 | -7/DSF | Discovered new exit (range 15) 4706 | -7/DSF | Sterilization system engaged 4714 | -7/DSF | Entered Factory 4714 | -6/Factory | Evolved 2 slots: Utility x2 4901 | -6/Factory | Repaired Cooling System 4949 | -6/Factory | Spotted B-75 Beast 5147 | -6/Factory | Build established: Assassin 5229 | -6/Factory | Identified exit to Lower Caves 5229 | -6/Factory | Identified exit to Extension 6085 | -6/Factory | Discovered new exit (range 7) 6463 | -6/Factory | Entered Lower Caves 6489 | -6/Lower Caves | Met a Warlord Commander 6490 | -6/Lower Caves | Learned location of Warlord (-4) 6491 | -6/Lower Caves | Warlord Commander delivered Encrypted Comm Array 6501 | -6/Lower Caves | Found Encrypted Comm Array 6761 | -6/Lower Caves | Build established: Skirmisher 7996 | -6/Lower Caves | Discovered new exit (range 12) 8042 | -6/Lower Caves | Identified exit to Lower Caves 8065 | -6/Lower Caves | Learned 4 Factory zone layouts 8104 | -6/Lower Caves | Entered another Lower Caves area 8216 | -6/Lower Caves | Discovered new exit (range 14) 8253 | -6/Lower Caves | Identified exit to Factory 8699 | -6/Lower Caves | Learned Factory interactive machine intel 8933 | -6/Lower Caves | Attacked by a delusional Derelict stockpiling parts 9160 | -6/Lower Caves | Attracted the attention of an 0b10 checkpoint 9326 | -6/Lower Caves | Discovered new exit (range 9) 9350 | -6/Lower Caves | Identified exit to Data Miner 9803 | -6/Lower Caves | Build established: Derelict-Skirmisher 9868 | -6/Lower Caves | Entered Data Miner 9868 | -6/Data Miner | Discovered new exit (range 6) 9919 | -6/Data Miner | Met Data Miner 9971 | -6/Data Miner | Learned location of Section 7 (-2) 9971 | -6/Data Miner | Acquired the access code to Warlord's prototype stash 10026 | -6/Data Miner | Received God Mode back door access code from Data Miner 10095 | -6/Data Miner | Identified exit to Proximity Caves 10098 | -6/Data Miner | Entered Proximity Caves 10786 | -5/Proximity Caves | Learned 4 Factory zone layouts 10843 | -5/Proximity Caves | Learned location of 2 exits from Factory 12752 | -5/Proximity Caves | Attracted the attention of an 0b10 checkpoint 12797 | -5/Proximity Caves | Lost 4 parts (1p1u2w) 12912 | -5/Proximity Caves | Discovered exit to Factory (range 12) 13053 | -5/Proximity Caves | Build established: Gunner 13117 | -5/Proximity Caves | Received a Behemoth hack from an annoying Tinkerer 13255 | -5/Proximity Caves | Entered Factory 13255 | -5/Factory | Evolved 2 slots: Propulsion x1, Utility x1 13256 | -5/Factory | Identified exit to Upper Caves 13256 | -5/Factory | Identified exit to Factory 13258 | -5/Factory | Loaded intel: 54 interactive machine locations 13598 | -5/Factory | Repaired Arm. Leg 13630 | -5/Factory | Build established: Derelict-Skirmisher 13746 | -5/Factory | Entered Upper Caves 13747 | -5/Upper Caves | Encountered a Warlord checkpoint 14647 | -5/Upper Caves | Identified exit to Upper Caves 14820 | -5/Upper Caves | Spotted B-75 Beast 14918 | -5/Upper Caves | Destroyed B-75 Beast 15065 | -5/Upper Caves | Attracted the attention of an 0b10 checkpoint 15140 | -5/Upper Caves | Found DCF Scrap (14 items) 15197 | -5/Upper Caves | Build established: Derelict-Gunner 15348 | -5/Upper Caves | Entered another Upper Caves area 15390 | -5/Upper Caves | Discovered exit to Factory (range 12) 15832 | -5/Upper Caves | Encountered a Warlord checkpoint 15923 | -5/Upper Caves | Attracted the attention of an 0b10 checkpoint 16983 | -5/Upper Caves | Discovered new exit (range 3) 16987 | -5/Upper Caves | Attracted the attention of an 0b10 outpost 16989 | -5/Upper Caves | Entered Zhirov 16989 | -5/Zhirov | Discovered new exit (range 3) 17040 | -5/Zhirov | Met Zhirov 17075 | -5/Zhirov | Learned location of Quarantine (-2) 17075 | -5/Zhirov | Learned location of Testing (-3) 17075 | -5/Zhirov | Learned location of Command (-1) 17110 | -5/Zhirov | Zhirov requested help retrieving the SGEMP Prototype 17146 | -5/Zhirov | Found Alien Artifact 17146 | -5/Zhirov | Identified Integrated Reactor 17146 | -5/Zhirov | Installed Integrated Reactor, increased core energy generation (+10) 17297 | -5/Zhirov | Entered Proximity Caves 17680 | -4/Proximity Caves | Discovered exit to Factory (range 13) 17720 | -4/Proximity Caves | Entered Factory 17720 | -4/Factory | Evolved 2 slots: Utility x2 17878 | -4/Factory | Repaired Imp. Heavy Armor Plating 18109 | -4/Factory | Discovered new exit (range 14) 18140 | -4/Factory | Build established: Derelict-Assassin 18142 | -4/Factory | Entered Research 18142 | -3/Research | Evolved 2 slots: Propulsion x1, Utility x1 18523 | -3/Research | Build established: Scavenger-Gunner 18844 | -3/Research | Lost 5 parts (2n3u) 18887 | -3/Research | Identified exit to Testing 19002 | -3/Research | Lost 5 parts (1n2u2w) 19223 | -3/Research | Spotted B-86 Titan 19264 | -3/Research | Lost 3 parts (3u) 19304 | -3/Research | Entered Testing 19350 | -3/Testing | Found Prototype Hackware 19350 | -3/Testing | Identified System Mapper 19371 | -3/Testing | Build established: Hacker-Skirmisher 19771 | -3/Testing | System corruption reached 10% 19783 | -3/Testing | Spotted Striker 19785 | -3/Testing | Spotted Striker 19792 | -3/Testing | Spotted Alpha 7 19801 | -3/Testing | Core integrity fell below 50% 19811 | -3/Testing | Destroyed Striker 19815 | -3/Testing | Destroyed Striker 19858 | -3/Testing | Core integrity fell below 20% 19869 | -3/Testing | System corruption reached 30% 19877 | -3/Testing | Destroyed by P-80 Master with Gamma Rifle Last Messages --------------- emitted. 19862_ Penetrated by Slug. 19862_ Exp. Cooling System destroyed. 19862_ Acquired Adv. Cooling System. 19865_ The unstable cave ceiling collapses. 19865_ 17 Matter crushed. 19868_ Penetrated by Slug. 19868_ Slug penetrates Wall. 19869_ Acquired Unknown Energy Cannon. 19869_ Identified Com. HERF Cannon. 19871_ Penetrated by Slug. 19871_ Slug penetrates Wall. 19871_ Penetrated by Slug. 19871_ Slug penetrates Wall. 19871_ Slug penetrates Earth. 19872_ Acquired Prototype Slashing Weapon. 19872_ Identified Centrium Greatsword. 19872_ System Mapper destroyed. 19876_ Alpha 7 Prototype Leg severed. 19877_ Biometal Leg destroyed. Map ----- +----------------------------------------------------+ | ### # # """#####?#####?## | | ??######## # ""##########???? | | ?#######?# ############?####?##? | | ########## ###############??##?# | | #?##?##### ###?#########?##????? | | ########## ## #####??######??? | | #?######## ## ############ ? | | ########## ## ########?##? | | ########## ? +? | | ########## ##### #??# ? | | ########## #####+###### ##?# ? | | ########## # !## #### | | # # # ##?##?##### | | # # # """ """ #? ### | | # """ # # """ """ ## #??"? ? | | # = """ # #=" """ ## ###"? | | # """ # /! ! #? ###"? | | # """ # #!= "" ## ###?" ?? | | # """ R # ""G"" ## #?#?"? ? | | # """ # ###########? ##?? | | # [ # #####??###?#?#?# ? ? | | ######/ # ##?#?####? ? ##?### | | ?## !]|!#pp##?######?? ? ? | | ### !]!!= ########## ?? | | ?## !%%7 ##?###?? ? ? | | #?#! "! @ !% ;####?# ? ?##?### | | ### ! != ; #######?### ?? | | ?## ;####?##?######??? ? | | ??### # ## ########?##?####? ? " | | ########## ;###########?#?# ??? | | #?????#### #;#?#########?## ??? | | #?##??### # #?#??#####???? ?" | | ??#?###### ########?###?###??? " | | ????##?#?#+/##?####?####??##????? | | #?####"?" ?#####??#???#?? ??? | | ?????#?"" ? #??#??#?##???????? | | ?#???#???? ? ??#?#???#?##???????? | | #??##?? ???? "?##??#????????????? | | ????#??""?? "??????#???????????? | | ?#???#"?????""??????????????????? | | ?????#??????????????????????????? | | ??#??????#??????????##??????????? | | ?#???????#??????????????????????? | | | | | | | | | | | | | | | +----------------------------------------------------+ Best States ------------- Heat Dissipation 122 Energy Generation 33 Energy Capacity 340 Matter Stores 300 Matter Capacity 300 Sight Range 16 Robot Scan Range 16 Terrain Scan Range 20 Terrain Scan Density 110 Jamming Range 12 Base Temperature (-) 150 Armor Coverage 1050 Resistance: TH 25 Weapon Shielding 33 Evasion (%) 50 Targeting Accuracy 6 Target Analysis 6 Core Analysis 6 Armor Integrity Analysis 30 Recoil Reduction 3 Matter Filtering 30 Kinecelleration 30 Salvage Targeting 2 Offensive Hacking 44 Item Schematics ----------------- Lgt. Regenerative Plating | -6/Data Miner | Free Combat Drone Bay | -6/Data Miner | Free Hvy. Gatling Laser | -6/Data Miner | Free Exp. Heat Sink | -6/Data Miner | Free Enh. Flexi-carbon Leg | -6/Data Miner | Free Dual-blade Saw | -6/Data Miner | Free Imp. System Guard | -6/Data Miner | Free Imp. Linear Gravjet | -6/Data Miner | Free Adv. Weapon Cycler | -6/Data Miner | Free Assault Drone Bay | -5/Zhirov | Free Exp. Optical Array | -5/Zhirov | Free Imp. Arc Thrower | -5/Zhirov | Free Robot Schematics ------------------ B-60 Warrior | -6/Data Miner | Free M-22 Extractor | -6/Data Miner | Free R-10 Processor | -6/Data Miner | Free S-27 Virus | -6/Data Miner | Free Fabricated ------------ Nothing Repaired ---------- Ion Engine | 10% | -10/Materials Lgt. Treads | 10% | -10/Materials Cooling System | 20% | -6/Factory Arm. Leg | 37% | -5/Factory Imp. Heavy Armor Plating | 30% | -4/Factory Studied --------- None Alien Tech Used ----------------- Integrated Reactor Achievements -------------- None Challenges ------------ None Game ------ Seed FireBackupObfuscator Manual? 0 Play Time 02:00:45 Cumulative 82.7 hours Start 2026.02.17 @ 16:19:10 End 2026.02.17 @ 18:28:52 Sessions 1 Manual Loads 0 Difficulty Rogue Special Mode None Game No. 114 Rogue 39 Adventurer 75 Explorer 0 Win Type - Total 4 Types 4/0/0/0/0/0/0/0/0/0 Lore% 40 Gallery% 47 Achievement% 35 Wizard Run 0 Options --------- Layout 2 ASCII 0 Keyboard 0 Movement Numpad Keybinds 0 Fullscreen 2 Font 24/Smallcaps Map View 50x44 Zoom Use 0% Tactical HUD 1 Map Filters NONE Filters NONE Steam 1 RUN: 1afc00df-5321-4f7d-bc09-d3e39797fedf